bitfinex/quotes_BTCUSD_20250204
["timestamp","ask_amount","ask_price","bid_price","bid_amount"]
[1738681951823,0.01849492,99778.0,99761.0,0.200479]
[1738681952040,0.01849492,99778.0,99762.0,0.10238506]
[1738681952246,0.01849492,99778.0,99776.0,0.150336]
[1738681952448,1.51849492,99788.0,99765.0,0.00120266]
[1738681952684,0.01849492,99788.0,99773.0,0.200453]
[1738681952937,0.01849492,99788.0,99780.0,0.15033]
[1738681953194,0.01849492,99788.0,99748.0,0.200503]
[1738681953195,0.150322,99786.0,99748.0,0.200503]
[1738681953443,0.01849492,99790.0,99775.0,0.150338]
[1738681953678,0.01849492,99790.0,99746.0,0.01]
[1738681953679,0.43163502,99790.0,99741.0,0.02030277]
[1738681953882,0.200449,99776.0,99761.0,0.150359]
[1738681954083,1.5,99777.0,99761.0,0.150359]
[1738681954290,0.150358,99762.0,99753.0,0.00036513]
[1738681954495,0.150363,99758.0,99753.0,0.00036513]
[1738681954704,1.5,99757.0,99753.0,0.00036513]
[1738681955026,0.150368,99755.0,99753.0,0.00036513]
[1738681955964,0.01849492,99754.0,99753.0,0.00036513]
[1738681956516,0.12087998,99754.0,99753.0,0.00036513]
[1738681956665,0.27087998,99754.0,99753.0,0.00036513]
[1738681956964,0.67087998,99754.0,99753.0,0.00036513]
[1738681957168,0.150406,99730.0,99729.0,0.0149402]
[1738681957726,0.40279106,99730.0,99729.0,0.0149402]
[1738681957928,0.45113805,99730.0,99729.0,0.0149402]
[1738681958379,0.47663708,99730.0,99729.0,0.0149402]
[1738681958725,0.45113805,99730.0,99729.0,0.0149402]
[1738681959414,0.35788811,99730.0,99729.0,0.0149402]
[1738681959607,0.19875299,99730.0,99729.0,0.0149402]
[1738681959813,0.04834699,99730.0,99708.0,0.200584]
[1738681960040,0.04834699,99730.0,99708.0,0.200585]
[1738681960265,0.04834699,99730.0,99703.0,0.00022449]
[1738681960472,0.04934699,99730.0,99703.0,0.00022449]
[1738681960684,0.04834699,99730.0,99710.0,0.0475]
[1738681960896,0.15042,99721.0,99703.0,0.00022449]
[1738681961101,0.10238506,99720.0,99703.0,0.00022449]
[1738681961719,0.150414,99725.0,99703.0,0.00022449]
[1738681961919,0.00916161,99730.0,99703.0,0.00022449]
[1738681962137,0.00916161,99730.0,99712.0,0.150432]
[1738681962339,1.5,99741.0,99712.0,0.150432]
[1738681962340,0.150396,99737.0,99712.0,0.150432]
[1738681962542,0.00902678,99734.0,99712.0,0.200577]
[1738681962761,0.04834699,99728.0,99716.0,0.200567]
[1738681962977,0.04834699,99728.0,99717.0,0.20079049]
[1738681963188,0.04834699,99728.0,99717.0,0.00022449]
[1738681963441,0.04834699,99728.0,99722.0,0.150417]
[1738681963646,0.04834699,99728.0,99717.0,0.00022449]
[1738681963852,0.323,99704.0,99670.0,0.00029428]
[1738681964065,0.023,99703.0,99670.0,0.00029428]
[1738681964276,0.31075504,99680.0,99670.0,0.00029428]
[1738681964508,0.150488,99676.0,99670.0,0.00076335]
[1738681964708,0.200641,99681.0,99670.0,0.00076335]
[1738681964919,0.15049,99675.0,99670.0,0.00076335]
[1738681965120,0.150482,99680.0,99670.0,0.00076335]
[1738681965331,0.10238506,99679.0,99670.0,0.00076335]
[1738681965545,0.150495,99671.0,99670.0,0.00076335]
[1738681965762,0.25288006,99671.0,99670.0,0.00076335]
[1738681966493,0.27588006,99671.0,99670.0,0.00076335]
[1738681966700,0.10238506,99671.0,99670.0,0.00076335]
[1738681966896,0.150494,99672.0,99670.0,0.00076335]
[1738681967119,0.06088175,99671.0,99670.0,0.00076335]
[1738681967393,0.04834699,99671.0,99627.0,0.0468]
[1738681967598,0.10238506,99670.0,99661.0,0.04036515]
[1738681967860,0.200664,99669.0,99661.0,0.04036515]
[1738681968017,0.150501,99667.0,99661.0,0.04036515]
[1738681968227,0.10238506,99667.0,99661.0,0.04036515]
[1738681968647,0.04834699,99671.0,99661.0,0.04036515]
[1738681968796,0.00522933,99742.0,99683.0,0.15]
[1738681968797,0.3,99720.0,99683.0,0.15]
[1738681969002,0.00522933,99742.0,99741.0,0.150389]
[1738681969210,0.00522933,99742.0,99730.0,0.31075504]
[1738681969405,0.0756,99785.0,99741.0,0.023]
[1738681969615,0.08041035,99786.0,99732.0,0.150403]
[1738681969835,0.08041035,99786.0,99715.0,0.200571]
[1738681969836,0.02037125,99773.0,99733.0,0.10238506]
[1738681970081,0.08819852,99747.0,99746.0,0.150381]
[1738681970283,0.08819852,99747.0,99740.0,0.31075504]
[1738681970458,0.08819852,99747.0,99743.0,0.150385]
[1738681970657,0.08819852,99747.0,99741.0,0.200519]
[1738681970928,0.08819852,99747.0,99745.0,0.150383]
[1738681971910,0.08819852,99747.0,99740.0,0.31075504]
[1738681972163,0.08819852,99747.0,99721.0,0.28086155]
[1738681972336,0.08819852,99747.0,99737.0,0.150395]
[1738681972539,0.08819852,99747.0,99722.0,0.25358819]
[1738681972540,0.150416,99723.0,99722.0,0.00120313]
[1738681972744,0.150416,99723.0,99700.0,0.01]
[1738681972745,0.173,99722.0,99644.0,0.0499]
[1738681972943,0.30048,99681.0,99680.0,0.00903597]
[1738681973148,1.5,99681.0,99680.0,0.00903597]
[1738681973671,0.15049,99675.0,99670.0,0.00022449]
[1738681973808,1.5,99681.0,99670.0,0.00022449]
[1738681973809,0.150494,99672.0,99670.0,0.00022449]
[1738681974011,0.15,99671.0,99670.0,0.00036515]
[1738681974236,0.27538506,99671.0,99670.0,0.00036515]
[1738681974579,0.300508,99662.0,99619.0,0.247564]
[1738681974785,0.40289306,99662.0,99661.0,0.04036524]
[1738681975150,0.150504,99665.0,99661.0,0.04036524]
[1738681975391,0.150507,99663.0,99661.0,0.04036524]
[1738681975887,0.25238506,99662.0,99661.0,0.04036524]
[1738681976131,0.15,99662.0,99661.0,0.04036524]
[1738681976362,0.25238506,99662.0,99661.0,0.04036524]
[1738681976877,0.150504,99665.0,99661.0,0.04036524]
[1738681977091,0.150507,99663.0,99661.0,0.04036524]
[1738681977337,0.150508,99662.0,99661.0,0.04036524]
[1738681977579,0.40289306,99662.0,99661.0,0.04036524]
[1738681978258,0.50538778,99662.0,99661.0,0.04036524]
[1738681978504,0.52838778,99662.0,99661.0,0.04036524]
[1738681978737,0.42589306,99662.0,99661.0,0.0334874]
[1738681978977,0.150544,99638.0,99637.0,0.08751436]
[1738681979232,0.150544,99638.0,99637.0,0.08765524]
[1738681979470,0.42592906,99638.0,99637.0,0.08765524]
[1738681980117,0.3,99630.0,99570.0,0.04582428]
[1738681980347,0.31075504,99600.0,99571.0,0.10238506]
[1738681980528,0.150611,99594.0,99570.0,0.04582428]
[1738681980698,0.08030355,99618.0,99570.0,0.04582428]
[1738681981103,0.15,99606.0,99571.0,0.00120503]
[1738681981308,0.08030355,99618.0,99573.0,0.01]
[1738681981467,0.08030355,99608.0,99581.0,0.10238506]
[1738681981672,0.08030355,99608.0,99607.0,0.150591]
[1738681981879,0.3,99660.0,99627.0,0.150561]
[1738681981880,0.31075504,99660.0,99627.0,0.150561]
[1738681982124,0.200664,99669.0,99627.0,0.150561]
[1738681982343,0.08030355,99670.0,99641.0,0.15054]
[1738681982559,0.08030355,99670.0,99641.0,0.25292506]
[1738681982983,0.31075504,99660.0,99616.0,0.15]
[1738681983186,0.15,99645.0,99617.0,0.10238506]
[1738681983344,0.16048652,99641.0,99608.0,0.04963989]
[1738681983541,0.150564,99625.0,99608.0,0.04963989]
[1738681983760,0.31075504,99630.0,99608.0,0.04963989]
[1738681983761,0.15056,99628.0,99608.0,0.04963989]
[1738681983957,0.31075504,99630.0,99608.0,0.00013989]
[1738681984578,0.08030355,99632.0,99613.0,0.150581]
[1738681984780,0.31075504,99650.0,99608.0,0.00013989]
[1738681984979,0.20071,99646.0,99621.0,0.15057]
[1738681985382,0.20072,99641.0,99621.0,0.150569]
[1738681985603,1.5,99649.0,99622.0,0.10238506]
[1738681985831,0.200672,99666.0,99623.0,0.00120428]
[1738681986066,0.08030355,99648.0,99644.0,0.150535]
[1738681986323,0.08030355,99648.0,99626.0,0.4015]
[1738681986512,0.200669,99667.0,99648.0,0.150529]
[1738681986650,0.200669,99667.0,99648.0,0.150528]
[1738681986831,0.150505,99665.0,99648.0,0.150529]
[1738681987036,0.15,99669.0,99648.0,0.150529]
[1738681987255,0.39105859,99670.0,99644.0,0.200713]
[1738681987256,0.150506,99664.0,99644.0,0.200713]
[1738681987480,0.08044433,99658.0,99647.0,0.15053]
[1738681987900,0.00014078,99658.0,99632.0,0.10238506]
[1738681988322,0.00014078,99658.0,99649.0,0.150527]
[1738681988569,0.08030355,99653.0,99633.0,0.200736]
[1738681988772,0.150518,99656.0,99634.0,0.10238506]
[1738681988973,0.00014078,99658.0,99634.0,0.10238506]
[1738681989176,0.00014078,99658.0,99643.0,0.150536]
[1738681989383,0.00014078,99658.0,99649.0,0.150528]
[1738681989591,0.00014078,99658.0,99634.0,0.10238506]
[1738681989764,0.15054,99641.0,99625.0,0.150564]
[1738681989980,0.15,99639.0,99582.0,0.0497]
[1738681990129,0.150572,99620.0,99593.0,0.200816]
[1738681990330,0.150572,99620.0,99584.0,0.200835]
[1738681990556,0.10238506,99619.0,99589.0,0.150618]
[1738681990791,0.31894847,99619.0,99570.0,0.00022428]
[1738681991122,0.15,99612.0,99571.0,0.200861]
[1738681991343,0.15,99612.0,99570.0,0.00022428]
[1738681991344,0.31075504,99590.0,99570.0,0.00022428]
[1738681991547,0.15,99599.0,99571.0,0.00046513]
[1738681991834,0.351415,99597.0,99572.0,0.200859]
[1738681992009,0.14846056,99598.0,99572.0,0.200859]
[1738681992189,0.15,99599.0,99573.0,0.00120512]
[1738681992392,0.08030355,99599.0,99581.0,0.15063]
[1738681992596,0.08030355,99599.0,99572.0,0.10238506]
[1738681992597,0.150628,99583.0,99572.0,0.10238506]
[1738681992796,0.02303036,99598.0,99572.0,0.10238506]
[1738681992975,0.23030355,99599.0,99572.0,0.10238506]
[1738681993184,0.23030355,99599.0,99571.0,0.00046513]
[1738681993429,0.200807,99598.0,99571.0,0.10285019]
[1738681993638,1.5,99589.0,99579.0,0.150633]
[1738681993971,1.5,99589.0,99588.0,0.15062]
[1738681994177,0.08030355,99599.0,99572.0,0.552362]
[1738681994385,0.08030355,99599.0,99591.0,0.150615]
[1738681994593,0.08030355,99599.0,99589.0,0.150618]
[1738681994803,0.08030355,99599.0,99574.0,0.200855]
[1738681995043,0.08030355,99599.0,99571.0,0.00046513]
[1738681995044,0.08030355,99599.0,99576.0,0.200851]
[1738681995247,0.08030355,99599.0,99578.0,0.351482]
[1738681995471,0.150616,99591.0,99572.0,0.150644]
[1738681995682,0.08030355,99599.0,99573.0,0.10238506]
[1738681996107,1.5,99598.0,99573.0,0.10238506]
[1738681996321,0.150612,99594.0,99573.0,0.10238506]
[1738681996529,0.08030355,99599.0,99573.0,0.10238506]
[1738681996733,0.08030355,99599.0,99574.0,0.00120504]
[1738681996950,0.08030355,99599.0,99575.0,0.10238506]
[1738681997213,0.08030355,99587.0,99571.0,0.00046513]
[1738681997489,0.02303036,99598.0,99572.0,0.10238506]
[1738681997745,0.200841,99582.0,99571.0,0.00046513]
[1738681997988,0.150635,99579.0,99571.0,0.00046513]
[1738681998233,0.150639,99576.0,99571.0,0.00046513]
[1738681998471,0.150634,99579.0,99571.0,0.00046513]
[1738681998722,0.150643,99573.0,99571.0,0.00046513]
[1738681999769,0.10238506,99572.0,99571.0,0.00046513]
[1738681999966,0.150643,99573.0,99571.0,0.00046513]
[1738682000286,0.25238506,99572.0,99571.0,0.00046513]
[1738682000494,0.57538506,99572.0,99571.0,0.00046513]
[1738682000699,0.67787978,99572.0,99571.0,0.00046513]
[1738682001744,0.67887978,99572.0,99571.0,0.00046513]
[1738682002212,0.57538506,99572.0,99571.0,0.00046513]
[1738682002844,0.57938506,99572.0,99571.0,0.00046513]
[1738682003461,0.55638506,99572.0,99571.0,0.00046513]
[1738682003655,0.004,99572.0,99571.0,0.00046513]
[1738682004445,0.150643,99573.0,99571.0,0.00046513]
[1738682004648,1.64045968,99572.0,99571.0,0.00046513]
[1738682004905,1.501,99572.0,99571.0,0.00016176]
[1738682005037,1.5,99572.0,99571.0,0.00016176]
[1738682005242,1.75238506,99572.0,99571.0,0.00016176]
[1738682005443,1.77538506,99572.0,99571.0,0.00016176]
[1738682005645,0.300656,99564.0,99563.0,1e-08]
[1738682005856,0.45610666,99564.0,99563.0,1e-08]
[1738682006069,0.42604106,99564.0,99563.0,1e-08]
[1738682006272,2.22604106,99564.0,99563.0,1e-08]
[1738682006483,2.22604106,99564.0,99561.0,0.00022428]
[1738682006484,0.300659,99562.0,99561.0,1e-08]
[1738682006687,0.42604406,99562.0,99561.0,1e-08]
[1738682007090,1.93530094,99562.0,99561.0,1e-08]
[1738682007755,1.93530094,99562.0,99520.0,0.00013012]
[1738682007756,0.023,99548.0,99520.0,0.00013012]
[1738682007975,0.300721,99521.0,99520.0,0.00013012]
[1738682008232,0.41418606,99521.0,99520.0,0.00013012]
[1738682008409,1.91418606,99521.0,99520.0,0.00013012]
[1738682008616,1.93718606,99521.0,99520.0,0.00013012]
[1738682008790,0.323743,99507.0,99506.0,1.8e-07]
[1738682009033,0.3,99495.0,99464.0,0.00013832]
[1738682009401,0.323764,99493.0,99464.0,0.00013832]
[1738682009597,0.323764,99493.0,99436.0,0.00014242]
[1738682009598,0.173811,99462.0,99436.0,0.00014242]
[1738682009801,0.01,99414.0,99371.0,0.201265]
[1738682010184,0.01,99414.0,99364.0,0.006772]
[1738682010185,0.01,99405.0,99365.0,0.00120714]
[1738682010433,0.150917,99392.0,99391.0,0.01851229]
[1738682010631,0.320917,99392.0,99391.0,0.01851229]
[1738682011000,0.17,99392.0,99391.0,0.01851229]
[1738682011195,0.42330206,99392.0,99391.0,0.01851229]
[1738682011533,0.27238506,99392.0,99391.0,0.01851229]
[1738682011989,0.01,99381.0,99352.0,0.00015472]
[1738682012198,0.02,99389.0,99353.0,0.10238506]
[1738682012425,0.08030355,99372.0,99353.0,0.10238506]
[1738682012688,0.08030355,99372.0,99355.0,0.150973]
[1738682012689,0.01,99369.0,99355.0,0.150973]
[1738682012930,0.16,99378.0,99363.0,0.15096]
[1738682013166,0.01,99370.0,99356.0,0.150972]
[1738682013411,0.01,99370.0,99352.0,0.00015472]
[1738682013412,0.01,99370.0,99358.0,0.150968]
[1738682013639,0.01,99370.0,99352.0,0.00015472]
[1738682013877,0.08030355,99382.0,99377.0,0.150939]
[1738682014121,0.08030355,99382.0,99353.0,0.10359272]
[1738682014122,0.08030355,99382.0,99353.0,0.10238506]
[1738682014305,0.01,99390.0,99378.0,0.10238506]
[1738682014652,0.01,99390.0,99352.0,0.00015472]
[1738682014653,0.08030355,99383.0,99357.0,0.10238506]
[1738682014859,0.09030355,99395.0,99360.0,0.10238506]
[1738682015047,0.08030355,99395.0,99361.0,0.20249337]
[1738682015180,0.01,99393.0,99362.0,0.10238506]
[1738682015559,0.08030355,99419.0,99390.0,0.150919]
[1738682015740,0.201203,99402.0,99391.0,0.10359215]
[1738682015941,0.01046771,99392.0,99390.0,4e-05]
[1738682016084,0.320919,99391.0,99390.0,4e-05]
[1738682016986,1.92330406,99391.0,99390.0,4e-05]
[1738682017180,1.92330406,99391.0,99363.0,0.1]
[1738682017181,0.01,99370.0,99363.0,0.1]
[1738682017645,0.15,99379.0,99363.0,0.1]
[1738682017646,0.01,99364.0,99363.0,0.1]
[1738682018077,0.01,99367.0,99363.0,0.1]
[1738682018420,0.09030355,99364.0,99363.0,0.1]
[1738682018593,0.46952672,99364.0,99363.0,0.1]
[1738682018807,0.46952672,99364.0,99326.0,0.0017408]
[1738682018808,0.02,99339.0,99326.0,0.0017408]
[1738682018955,0.171016,99327.0,99326.0,0.0017408]
[1738682019158,0.321016,99327.0,99326.0,0.0017408]
[1738682019737,0.12238506,99327.0,99326.0,0.0017408]
[1738682019916,0.01,99334.0,99326.0,0.0017408]
[1738682020145,0.02,99327.0,99326.0,0.0017408]
[1738682020354,0.11285219,99327.0,99326.0,0.0017408]
[1738682020552,0.27285219,99327.0,99326.0,0.0017408]
[1738682020759,0.331042,99310.0,99309.0,8.7e-07]
[1738682020971,0.02,99282.0,99240.0,0.0459]
[1738682021173,0.43686906,99282.0,99240.0,0.0459]
[1738682021396,0.43686906,99282.0,99245.0,0.15114]
[1738682021604,0.43686906,99282.0,99240.0,0.0459]
[1738682021805,0.32109,99278.0,99239.0,0.00017112]
[1738682021973,0.27238506,99278.0,99240.0,0.20153]
[1738682022151,0.11238506,99278.0,99240.0,0.20153]
[1738682022355,0.11238506,99278.0,99239.0,0.00017112]
[1738682022356,0.01,99269.0,99241.0,0.00120907]
[1738682022553,0.01,99269.0,99232.0,0.0233996]
[1738682022554,0.321159,99233.0,99232.0,0.0233996]
[1738682023305,0.32117,99226.0,99211.0,0.00017522]
[1738682023779,0.52604978,99226.0,99211.0,0.00017522]
[1738682024013,0.41355506,99226.0,99211.0,0.00017522]
[1738682024268,0.01046627,99226.0,99211.0,0.00017522]
[1738682024460,0.00046627,99226.0,99220.0,0.15]
[1738682024663,0.00046627,99226.0,99224.0,0.151172]
[1738682024824,0.01,99273.0,99262.0,0.151115]
[1738682024825,0.01,99272.0,99262.0,0.151115]
[1738682025026,0.01,99295.0,99263.0,0.10359404]
[1738682025257,0.02,99283.0,99236.0,0.201539]
[1738682025460,0.01,99272.0,99237.0,0.16310332]
[1738682025659,0.01,99255.0,99225.0,0.00217317]
[1738682025863,0.161138,99247.0,99231.0,0.15116]
[1738682026091,0.01,99245.0,99235.0,0.151155]
[1738682026291,0.2015,99256.0,99235.0,0.151155]
[1738682026292,0.01,99260.0,99236.0,0.10238506]
[1738682026536,0.00147569,99266.0,99236.0,0.10238506]
[1738682026855,0.00147569,99265.0,99236.0,0.10238506]
[1738682026963,0.00147569,99265.0,99237.0,0.00120894]
[1738682027163,0.01,99271.0,99238.0,0.10238506]
[1738682027368,0.00147569,99278.0,99239.0,0.00120892]
[1738682027573,0.01,99269.0,99261.0,0.151116]
[1738682027774,0.01,99275.0,99258.0,0.201494]
[1738682027975,0.01,99285.0,99273.0,0.151098]
[1738682028176,0.1,99323.0,99236.0,0.002]
[1738682028177,0.01,99303.0,99274.0,0.10359385]
[1738682028389,0.00147569,99298.0,99274.0,0.10238506]
[1738682028602,1.5,99298.0,99296.0,0.151063]
[1738682028827,1.5,99298.0,99296.0,0.25344806]
[1738682029040,0.09030355,99327.0,99326.0,0.151017]
[1738682029280,0.08030355,99327.0,99326.0,0.151017]
[1738682029473,0.08030355,99327.0,99297.0,0.10238506]
[1738682029474,0.004,99319.0,99297.0,0.10238506]
[1738682029682,0.004,99309.0,99281.0,0.08030355]
[1738682029887,0.004,99305.0,99281.0,0.18268861]
[1738682030095,0.004,99274.0,99268.0,0.151105]
[1738682030300,0.004,99279.0,99278.0,0.151089]
[1738682030511,0.004,99298.0,99273.0,0.00213989]
[1738682030750,0.004,99279.0,99274.0,0.201462]
[1738682030952,0.004,99279.0,99273.0,0.00213989]
[1738682030953,0.014,99274.0,99273.0,0.00013989]
[1738682031156,0.00547569,99274.0,99273.0,0.00013989]
[1738682031307,0.01,99274.0,99273.0,0.00013989]
[1738682031508,0.004,99265.0,99217.0,0.006]
[1738682031707,0.01,99273.0,99252.0,0.151128]
[1738682031708,0.004,99261.0,99252.0,0.151128]
[1738682031960,0.004,99265.0,99240.0,0.10238506]
[1738682032162,0.004,99261.0,99252.0,0.15113]
[1738682032330,0.00147569,99272.0,99240.0,0.10238506]
[1738682032331,0.004,99266.0,99240.0,0.10238506]
[1738682032531,0.08030355,99277.0,99239.0,0.07694044]
[1738682032532,0.004,99262.0,99239.0,0.00014044]
[1738682032787,0.151147,99241.0,99239.0,0.00014044]
[1738682032989,1.5,99246.0,99239.0,0.00014044]
[1738682033244,0.004,99252.0,99239.0,0.00014044]
[1738682033389,0.004,99244.0,99239.0,0.00014044]
[1738682033569,1.651148,99240.0,99239.0,0.00014044]
[1738682033784,1.5,99240.0,99239.0,0.00014044]
[1738682033973,1.60249472,99240.0,99239.0,0.00014044]
[1738682034172,1.504,99240.0,99239.0,0.00014044]
[1738682034802,1.61638506,99240.0,99239.0,0.00014044]
[1738682034998,2.31462906,99240.0,99239.0,0.00114044]
[1738682035153,0.30517,99226.0,99225.0,0.00017317]
[1738682035361,0.16518,99219.0,99218.0,0.0161317]
[1738682035560,0.315191,99212.0,99200.0,0.0004]
[1738682035768,1.91757606,99212.0,99200.0,0.0004]
[1738682036130,0.014,99212.0,99200.0,0.0004]
[1738682036534,0.32661245,99212.0,99200.0,0.0004]
[1738682036736,1.92910717,99212.0,99200.0,0.0004]
[1738682037050,0.415195,99209.0,99200.0,0.0004]
[1738682037237,0.314,99201.0,99200.0,0.0004]
[1738682037442,0.74899306,99201.0,99200.0,0.0004]
[1738682037839,1.97782045,99201.0,99200.0,0.0004]
[1738682038043,1.82382045,99201.0,99200.0,0.0004]
[1738682038247,2.54234045,99201.0,99200.0,0.0004]
[1738682038439,0.3,99190.0,99135.0,0.00121027]
[1738682038646,0.315234,99184.0,99140.0,0.201733]
[1738682038882,0.315234,99184.0,99135.0,0.201743]
[1738682038883,0.165255,99170.0,99135.0,0.201743]
[1738682039093,0.165255,99170.0,99112.0,0.08030355]
[1738682039094,0.26911575,99170.0,99131.0,0.12487]
[1738682039300,0.165255,99170.0,99131.0,0.12487]
[1738682039503,0.165255,99170.0,99148.0,0.151288]
[1738682039700,0.01,99170.0,99131.0,0.12487]
[1738682039912,0.004,99178.0,99135.0,0.00121026]
[1738682040147,0.00013971,99170.0,99169.0,0.15143737]
[1738682040347,0.0603671,99170.0,99169.0,0.36351256]
[1738682040588,0.05522188,99206.0,99204.0,0.151202]
[1738682040797,0.08030355,99205.0,99204.0,0.151202]
[1738682040990,0.00014078,99206.0,99204.0,0.25358806]
[1738682041221,0.00014078,99206.0,99205.0,0.00120949]
[1738682041418,0.00014078,99206.0,99205.0,0.10238506]
[1738682041686,0.00014078,99206.0,99169.0,0.0798]
[1738682041838,0.00014078,99206.0,99171.0,0.10238506]
[1738682041839,0.004,99202.0,99171.0,0.10238506]
[1738682042040,0.00014078,99206.0,99193.0,0.201626]
[1738682042241,0.004,99205.0,99204.0,0.001]
[1738682042422,0.00014078,99206.0,99173.0,0.10238506]
[1738682042423,0.004,99204.0,99173.0,0.10238506]
[1738682042780,0.004,99190.0,99155.0,0.07798342]
[1738682042917,0.004,99183.0,99157.0,0.15]
[1738682043122,0.00014078,99206.0,99193.0,0.151219]
[1738682043321,0.00014078,99206.0,99189.0,0.201634]
[1738682043322,0.004,99189.0,99174.0,0.151248]
[1738682043524,0.004,99189.0,99158.0,0.10238506]
[1738682043525,0.01,99181.0,99158.0,0.10238506]
[1738682044032,1.504,99193.0,99190.0,0.151224]
[1738682044235,0.004,99192.0,99160.0,0.352964]
[1738682044445,0.004,99189.0,99176.0,0.151245]
[1738682044646,0.00309285,99184.0,99161.0,0.10238506]
[1738682044848,0.00309285,99205.0,99165.0,0.30406906]
[1738682045047,0.01,99203.0,99166.0,0.10359483]
[1738682045269,0.00147569,99214.0,99173.0,0.00690715]
[1738682045473,0.00309285,99257.0,99205.0,0.30810915]
[1738682045645,0.00309285,99257.0,99219.0,0.201572]
[1738682045849,0.0001408,99257.0,99255.0,0.151125]
[1738682046148,0.0001408,99257.0,99211.0,0.15]
[1738682046149,0.00323365,99257.0,99218.0,0.15]
[1738682046408,0.00323365,99257.0,99234.0,0.08030355]
[1738682046409,0.00456854,99256.0,99234.0,0.08030355]
[1738682046600,0.0001408,99257.0,99256.0,0.151124]
[1738682046800,0.0001408,99257.0,99251.0,0.00120884]
[1738682047017,0.0001408,99257.0,99211.0,0.403181]
[1738682047018,0.0001408,99257.0,99210.0,0.08030355]
[1738682047352,0.00309285,99236.0,99235.0,0.151156]
[1738682047561,0.00309285,99256.0,99235.0,0.01852996]
[1738682047801,0.00161649,99257.0,99236.0,0.10238506]
[1738682048013,0.0001408,99257.0,99237.0,0.01330061]
[1738682048182,0.0001408,99257.0,99253.0,0.151128]
[1738682048421,0.0001408,99257.0,99238.0,0.10238506]
[1738682048647,0.00309285,99253.0,99242.0,0.151145]
[1738682048840,0.01,99252.0,99235.0,0.001]
[1738682049008,0.00309285,99240.0,99235.0,0.001]
[1738682049174,0.01309285,99255.0,99202.0,0.02420927]
[1738682049382,0.0001408,99257.0,99255.0,0.151125]
[1738682049584,0.0001408,99257.0,99256.0,0.10359407]
[1738682049999,0.00022554,99282.0,99256.0,0.25359407]
[1738682050205,0.00022554,99282.0,99263.0,0.15]
[1738682050405,0.00309285,99322.0,99296.0,0.151063]
[1738682050789,0.00309285,99335.0,99296.0,0.40344806]
[1738682051022,0.00309285,99344.0,99298.0,0.023]
[1738682051244,0.08030355,99358.0,99298.0,0.023]
[1738682051245,0.00309285,99352.0,99327.0,0.151016]
[1738682051694,0.01,99357.0,99347.0,0.150985]
[1738682051695,0.01147569,99357.0,99347.0,0.150985]
[1738682051909,0.01,99357.0,99347.0,0.150985]
[1738682052121,0.01,99357.0,99336.0,0.201334]
[1738682052122,0.150975,99354.0,99336.0,0.201334]
[1738682052328,0.00309285,99349.0,99328.0,0.201353]
[1738682052531,0.00170123,99353.0,99328.0,0.019082]
[1738682052532,0.00309285,99340.0,99328.0,0.019082]
[1738682052735,0.00147569,99352.0,99329.0,0.10238506]
[1738682052950,0.00022554,99353.0,99352.0,0.150978]
[1738682053176,0.00022554,99353.0,99352.0,0.25457075]
[1738682053377,0.00022554,99353.0,99352.0,0.25336306]
[1738682053791,0.00022554,99353.0,99352.0,0.40336306]
[1738682053996,0.00022554,99353.0,99352.0,0.42636306]
[1738682054205,0.00309285,99397.0,99381.0,0.150934]
[1738682054403,0.00331797,99407.0,99381.0,0.25452641]
[1738682054612,0.01,99404.0,99381.0,0.25331906]
[1738682054823,0.00456854,99399.0,99381.0,0.25331906]
[1738682055028,0.00022512,99407.0,99381.0,0.40331906]
[1738682055231,0.00022512,99407.0,99381.0,0.42631906]
[1738682055435,0.00069548,99382.0,99381.0,0.43322621]
[1738682055641,0.00309285,99415.0,99381.0,0.10338506]
[1738682055850,1.5,99420.0,99389.0,0.30361406]
[1738682056059,1.5,99420.0,99418.0,0.150877]
[1738682056263,0.00014092,99419.0,99400.0,0.201206]
[1738682056470,0.00014092,99419.0,99381.0,0.001]
[1738682056471,0.01,99410.0,99381.0,0.001]
[1738682056673,0.00309285,99400.0,99381.0,0.001]
[1738682056876,0.00309285,99396.0,99382.0,0.10238506]
[1738682057085,0.01309285,99392.0,99381.0,0.001]
[1738682057287,0.00309285,99388.0,99381.0,0.001]
[1738682057504,1.50309285,99382.0,99381.0,0.001]
[1738682057707,1.51309285,99382.0,99381.0,0.001]
[1738682058135,0.00309285,99375.0,99354.0,0.00120771]
[1738682058344,0.201265,99371.0,99339.0,0.20133]
[1738682058556,0.00309285,99361.0,99340.0,0.08151128]
[1738682058760,0.150966,99360.0,99348.0,0.150983]
[1738682058971,0.201259,99375.0,99341.0,0.10238506]
[1738682058972,0.00309285,99356.0,99341.0,0.10238506]
[1738682059218,0.00309285,99350.0,99297.0,0.02056175]
[1738682059464,0.01,99349.0,99321.0,0.10359289]
[1738682059702,0.01,99349.0,99322.0,0.01838964]
[1738682059935,0.01,99349.0,99340.0,0.001]
[1738682060174,0.01,99349.0,99342.0,0.150992]
[1738682060445,0.00309285,99347.0,99324.0,0.201361]
[1738682060707,0.00309285,99342.0,99326.0,0.201357]
[1738682060924,0.00309285,99342.0,99335.0,0.151003]
[1738682061159,0.00309285,99345.0,99327.0,0.10238506]
[1738682061407,0.51014077,99349.0,99343.0,0.15099]
[1738682061654,0.00309285,99343.0,99328.0,0.01023851]
[1738682061903,0.00309285,99333.0,99324.0,0.00120798]
[1738682062146,0.50014077,99349.0,99336.0,0.201336]
[1738682062406,0.50014077,99349.0,99335.0,0.001]
[1738682062407,0.50014077,99349.0,99348.0,0.150984]
[1738682062656,0.50014077,99349.0,99348.0,0.25336906]
[1738682063152,0.201316,99346.0,99333.0,0.151006]
[1738682063362,0.15408085,99346.0,99334.0,0.10238506]
[1738682063560,1.5,99345.0,99336.0,0.001]
[1738682063778,1.50309285,99345.0,99336.0,0.001]
[1738682064005,0.16409385,99337.0,99336.0,0.001]
[1738682064220,0.16556954,99337.0,99336.0,0.001]
[1738682065037,0.00309285,99323.0,99296.0,0.00120819]
[1738682065239,0.01,99331.0,99321.0,0.10238506]
[1738682065443,0.01309285,99341.0,99323.0,0.352385]
[1738682065680,0.201318,99346.0,99295.0,0.00690715]
[1738682065681,0.00309285,99345.0,99324.0,0.10359305]